[Event "*** Titled Tuesday Blitz"]
[Site "Chess.com"]
[Date "2021.04.06"]
[Round "4"]
[White "szachuspl"]
[Black "Loy_Konstantin"]
[Result "0-1"]
[WhiteElo "2545"]
[BlackElo "2352"]
[TimeControl "180+1"]
[EndTime "10:41:16 PDT"]
[Termination "Loy_Konstantin won by resignation"]

1. d4 {[%clk 0:03:00.9]} 1... Nf6 {[%clk 0:02:53.4]} 2. c4 {[%clk 0:03:00.9]}
2... c5 {[%clk 0:02:53.7]} 3. d5 {[%clk 0:03:01]} 3... b5 {[%clk 0:02:54.3]} 4.
a4 {[%clk 0:02:56.8]} 4... Qa5+ {[%clk 0:02:52.2]} 5. Qd2 {[%clk 0:02:43.8]}
5... b4 {[%clk 0:02:51.7]} 6. g3 {[%clk 0:02:40]} 6... d6 {[%clk 0:02:51.1]} 7.
Bg2 {[%clk 0:02:40.2]} 7... g6 {[%clk 0:02:51.4]} 8. b3 {[%clk 0:02:40.1]} 8...
Bg7 {[%clk 0:02:51.4]} 9. Bb2 {[%clk 0:02:40.7]} 9... O-O {[%clk 0:02:51.2]} 10.
Qc2 {[%clk 0:02:38.9]} 10... Bf5 {[%clk 0:02:18.9]} 11. e4 {[%clk 0:02:25.8]}
11... Nxe4 {[%clk 0:02:01.2]} 12. Bxg7 {[%clk 0:02:23.3]} 12... Nc3 {[%clk
0:02:00.8]} 13. Qb2 {[%clk 0:01:35.3]} 13... Kxg7 {[%clk 0:01:56.5]} 14. Ne2
{[%clk 0:01:32.5]} 14... Bxb1 {[%clk 0:01:44.6]} 15. Rxb1 {[%clk 0:01:30.2]}
15... Kg8 {[%clk 0:01:44.9]} 16. Rc1 {[%clk 0:01:23.2]} 16... Nxe2 {[%clk
0:01:44.1]} 17. Qxe2 {[%clk 0:01:23]} 17... Nd7 {[%clk 0:01:42]} 18. O-O {[%clk
0:01:22.9]} 18... Rae8 {[%clk 0:01:42.4]} 19. f4 {[%clk 0:01:20.8]} 19... Qd8
{[%clk 0:01:37.7]} 20. h4 {[%clk 0:01:18]} 20... Nf6 {[%clk 0:01:25.4]} 21. Rcd1
{[%clk 0:01:14.8]} 21... e6 {[%clk 0:01:12.9]} 22. dxe6 {[%clk 0:01:12.9]} 22...
Rxe6 {[%clk 0:01:13]} 23. Qd3 {[%clk 0:01:10.4]} 23... Qe7 {[%clk 0:01:00.7]}
24. f5 {[%clk 0:01:07.5]} 24... Re3 {[%clk 0:00:55.4]} 25. Qxd6 {[%clk
0:01:05.5]} 25... Qxd6 {[%clk 0:00:34.8]} 26. Rxd6 {[%clk 0:01:06.4]} 26... Kg7
{[%clk 0:00:34]} 27. Rf3 {[%clk 0:01:02.6]} 27... Rxf3 {[%clk 0:00:31]} 28. Bxf3
{[%clk 0:01:03.5]} 28... Re8 {[%clk 0:00:28.4]} 29. Kf2 {[%clk 0:01:02]} 29...
gxf5 {[%clk 0:00:22.5]} 30. Rc6 {[%clk 0:00:57]} 30... Re5 {[%clk 0:00:22.8]}
31. Rc7 {[%clk 0:00:54]} 31... Ng4+ {[%clk 0:00:18.4]} 32. Kg2 {[%clk
0:00:39.1]} 32... a5 {[%clk 0:00:16]} 33. Ra7 {[%clk 0:00:37.9]} 33... Re3
{[%clk 0:00:12.8]} 34. Rxa5 {[%clk 0:00:35]} 34... Rxb3 {[%clk 0:00:10.1]} 35.
Rxc5 {[%clk 0:00:35.2]} 35... Rb2+ {[%clk 0:00:10.1]} 36. Kg1 {[%clk 0:00:32.9]}
36... Ne3 {[%clk 0:00:07.7]} 37. Re5 {[%clk 0:00:17]} 37... Nxc4 {[%clk
0:00:06.3]} 38. Rxf5 {[%clk 0:00:17.6]} 38... b3 {[%clk 0:00:04.3]} 39. Bd5
{[%clk 0:00:16.8]} 39... Nd6 {[%clk 0:00:04.2]} 40. Rf1 {[%clk 0:00:14.7]} 40...
f5 {[%clk 0:00:02]} 41. Kh1 {[%clk 0:00:14.1]} 41... Kf6 {[%clk 0:00:01.9]} 42.
a5 {[%clk 0:00:14.3]} 42... Ke5 {[%clk 0:00:02.8]} 43. Bg8 {[%clk 0:00:13.6]}
43... Ra2 {[%clk 0:00:03.3]} 44. Bxb3 {[%clk 0:00:13.1]} 44... Rxa5 {[%clk
0:00:03.8]} 45. Bc2 {[%clk 0:00:13.4]} 45... Ra3 {[%clk 0:00:04]} 46. Kg2 {[%clk
0:00:13]} 46... h6 {[%clk 0:00:04.5]} 47. Kh3 {[%clk 0:00:13.3]} 47... Ne4
{[%clk 0:00:04.9]} 48. Rg1 {[%clk 0:00:12.4]} 48... Rc3 {[%clk 0:00:04.5]} 49.
Bb1 {[%clk 0:00:12.5]} 49... Nf2+ {[%clk 0:00:04.5]} 50. Kg2 {[%clk 0:00:12.3]}
50... Ne4 {[%clk 0:00:05.4]} 51. Re1 {[%clk 0:00:12.3]} 51... Kd4 {[%clk
0:00:05.3]} 52. Bxe4 {[%clk 0:00:12]} 52... fxe4 {[%clk 0:00:05.2]} 53. g4
{[%clk 0:00:12.5]} 53... e3 {[%clk 0:00:05.2]} 54. Rd1+ {[%clk 0:00:13]} 54...
Rd3 {[%clk 0:00:04.9]} 55. Re1 {[%clk 0:00:13.4]} 55... Ke4 {[%clk 0:00:05.3]}
56. Rf1 {[%clk 0:00:10.2]} 56... Rd2+ {[%clk 0:00:05.5]} 57. Kg3 {[%clk
0:00:10.3]} 57... e2 {[%clk 0:00:05.7]} 58. Re1 {[%clk 0:00:10.7]} 58... Ke3
{[%clk 0:00:05.7]} 59. g5 {[%clk 0:00:09.9]} 59... hxg5 {[%clk 0:00:06.6]} 60.
hxg5 {[%clk 0:00:10.1]} 60... Rd1 {[%clk 0:00:06.8]} 61. Rxe2+ {[%clk
0:00:08.5]} 61... Kxe2 {[%clk 0:00:07.7]} 62. Kf4 {[%clk 0:00:08.9]} 62... Rf1+
{[%clk 0:00:06.7]} 63. Ke5 {[%clk 0:00:08.2]} 63... Kf3 {[%clk 0:00:06.6]} 64.
Kf6 {[%clk 0:00:07.1]} 64... Kg4+ {[%clk 0:00:06.4]} 65. Kg6 {[%clk 0:00:06.9]}
65... Rf5 {[%clk 0:00:05.9]} 0-1

[Event "*** Titled Tuesday Blitz"]
[Site "Chess.com"]
[Date "2021.04.06"]
[Round "4"]
[White "Rozhkov_V"]
[Black "SilviusTiberius"]
[Result "0-1"]
[WhiteElo "2440"]
[BlackElo "2603"]
[TimeControl "180+1"]
[EndTime "10:41:18 PDT"]
[Termination "SilviusTiberius won on time"]

1. e4 {[%clk 0:03:00.9]} 1... e5 {[%clk 0:02:59.9]} 2. Nf3 {[%clk 0:03:00.4]}
2... Nc6 {[%clk 0:03:00.4]} 3. d4 {[%clk 0:03:00.6]} 3... exd4 {[%clk
0:03:00.2]} 4. Bc4 {[%clk 0:03:01.2]} 4... Nf6 {[%clk 0:02:59.3]} 5. e5 {[%clk
0:03:01]} 5... Ne4 {[%clk 0:02:58.7]} 6. Bd5 {[%clk 0:02:53.2]} 6... Nc5 {[%clk
0:02:55.8]} 7. O-O {[%clk 0:02:46.1]} 7... Be7 {[%clk 0:02:51.7]} 8. Bxc6 {[%clk
0:02:28.8]} 8... dxc6 {[%clk 0:02:50.4]} 9. Nxd4 {[%clk 0:02:28.9]} 9... O-O
{[%clk 0:02:48.6]} 10. Be3 {[%clk 0:02:27.7]} 10... Re8 {[%clk 0:02:42.6]} 11.
Nc3 {[%clk 0:02:18.3]} 11... Bf8 {[%clk 0:02:39.8]} 12. f4 {[%clk 0:02:17.6]}
12... f6 {[%clk 0:02:39.9]} 13. Qf3 {[%clk 0:02:01.3]} 13... fxe5 {[%clk
0:02:16.2]} 14. fxe5 {[%clk 0:02:01.1]} 14... Qe7 {[%clk 0:02:11.3]} 15. Bg5
{[%clk 0:02:00.6]} 15... Qd7 {[%clk 0:01:48.1]} 16. Rad1 {[%clk 0:01:59.9]}
16... h6 {[%clk 0:01:41.7]} 17. Ndb5 {[%clk 0:01:31.1]} 17... cxb5 {[%clk
0:01:03.8]} 18. Rxd7 {[%clk 0:01:29.2]} 18... Bxd7 {[%clk 0:01:04.7]} 19. Bf4
{[%clk 0:01:15.1]} 19... Bc6 {[%clk 0:01:01.2]} 20. Qg3 {[%clk 0:01:14.9]} 20...
b4 {[%clk 0:00:58.2]} 21. Ne2 {[%clk 0:01:07.8]} 21... Kh8 {[%clk 0:00:57.4]}
22. Nd4 {[%clk 0:01:05.9]} 22... Bd5 {[%clk 0:00:57.1]} 23. Nf5 {[%clk
0:00:50.4]} 23... Rad8 {[%clk 0:00:56.5]} 24. h3 {[%clk 0:00:43.5]} 24... Ne4
{[%clk 0:00:55.3]} 25. Qh4 {[%clk 0:00:39.7]} 25... Rd7 {[%clk 0:00:46]} 26. Ne3
{[%clk 0:00:16.3]} 26... Bc6 {[%clk 0:00:36.7]} 27. Qh5 {[%clk 0:00:14.9]} 27...
Rd2 {[%clk 0:00:22.4]} 28. Nf5 {[%clk 0:00:10.8]} 28... Rxg2+ {[%clk 0:00:19.2]}
29. Kxg2 {[%clk 0:00:10.3]} 29... Nf6+ {[%clk 0:00:18.5]} 30. Qf3 {[%clk
0:00:10.8]} 30... Bxf3+ {[%clk 0:00:18.3]} 31. Kxf3 {[%clk 0:00:11.5]} 31... Nd5
{[%clk 0:00:18.6]} 32. Bg3 {[%clk 0:00:11.5]} 32... g6 {[%clk 0:00:17.6]} 33.
Nd4 {[%clk 0:00:10.7]} 33... Bg7 {[%clk 0:00:17.7]} 34. Re1 {[%clk 0:00:10.5]}
34... c5 {[%clk 0:00:16.9]} 35. Nb5 {[%clk 0:00:09.9]} 35... Re6 {[%clk
0:00:16.5]} 36. Nd6 {[%clk 0:00:09.6]} 36... Ne7 {[%clk 0:00:16.6]} 37. Nxb7
{[%clk 0:00:09.3]} 37... Nc6 {[%clk 0:00:16.8]} 38. Nxc5 {[%clk 0:00:09]} 38...
Re8 {[%clk 0:00:17.4]} 39. e6 {[%clk 0:00:09.2]} 39... Nd4+ {[%clk 0:00:17.5]}
40. Kg2 {[%clk 0:00:09]} 40... Nxc2 {[%clk 0:00:17.6]} 41. Re4 {[%clk
0:00:09.4]} 41... Nd4 {[%clk 0:00:17.2]} 42. Be5 {[%clk 0:00:07.8]} 42... Nf5
{[%clk 0:00:17.6]} 43. Bxg7+ {[%clk 0:00:07.8]} 43... Kxg7 {[%clk 0:00:18.5]}
44. Rxb4 {[%clk 0:00:06.4]} 44... Kf6 {[%clk 0:00:16.8]} 45. Rb7 {[%clk
0:00:06.4]} 45... Rc8 {[%clk 0:00:16.2]} 46. Rf7+ {[%clk 0:00:06.6]} 46... Kg5
{[%clk 0:00:16.1]} 47. Nd7 {[%clk 0:00:06.3]} 47... Rc2+ {[%clk 0:00:15.5]} 48.
Kf3 {[%clk 0:00:06.6]} 48... Nh4+ {[%clk 0:00:15.5]} 49. Ke4 {[%clk 0:00:06.7]}
49... Nf5 {[%clk 0:00:16]} 50. Kd3 {[%clk 0:00:06.9]} 50... Rc1 {[%clk
0:00:15.8]} 51. e7 {[%clk 0:00:07.2]} 51... Re1 {[%clk 0:00:15.7]} 52. Nf6
{[%clk 0:00:05.5]} 52... Rxe7 {[%clk 0:00:14.7]} 53. Ne4+ {[%clk 0:00:06.1]}
53... Kf4 {[%clk 0:00:14.3]} 54. Rf6 {[%clk 0:00:06]} 54... Rxe4 {[%clk
0:00:14.1]} 55. Rxg6 {[%clk 0:00:06.4]} 55... Re3+ {[%clk 0:00:13.9]} 56. Kc4
{[%clk 0:00:06.5]} 56... Rxh3 {[%clk 0:00:14.4]} 57. b4 {[%clk 0:00:05]} 57...
h5 {[%clk 0:00:14.3]} 58. a4 {[%clk 0:00:05.1]} 58... h4 {[%clk 0:00:14]} 59. b5
{[%clk 0:00:05.1]} 59... Ra3 {[%clk 0:00:13.8]} 60. Kb4 {[%clk 0:00:04.9]} 60...
Ra1 {[%clk 0:00:14]} 61. Rg8 {[%clk 0:00:05.2]} 61... h3 {[%clk 0:00:13.9]} 62.
Rh8 {[%clk 0:00:05.7]} 62... Kg3 {[%clk 0:00:13.5]} 63. a5 {[%clk 0:00:06]}
63... h2 {[%clk 0:00:13.3]} 64. b6 {[%clk 0:00:02.1]} 64... axb6 {[%clk
0:00:13]} 65. axb6 {[%clk 0:00:02.6]} 65... Rb1+ {[%clk 0:00:13.4]} 66. Kc5
{[%clk 0:00:02]} 66... Nh4 {[%clk 0:00:13.9]} 67. Rg8+ {[%clk 0:00:01.8]} 67...
Kh3 {[%clk 0:00:14]} 0-1

[Event "*** Titled Tuesday Blitz"]
[Site "Chess.com"]
[Date "2021.04.06"]
[Round "4"]
[White "Triumphmate"]
[Black "C_K_G"]
[Result "1-0"]
[WhiteElo "2372"]
[BlackElo "2041"]
[TimeControl "180+1"]
[EndTime "10:41:19 PDT"]
[Termination "Triumphmate won by resignation"]

1. e4 {[%clk 0:03:00.9]} 1... c5 {[%clk 0:02:54.7]} 2. Nf3 {[%clk 0:03:01.2]}
2... d6 {[%clk 0:02:54.8]} 3. d4 {[%clk 0:03:01.6]} 3... cxd4 {[%clk 0:02:55]}
4. Nxd4 {[%clk 0:03:02.5]} 4... Nf6 {[%clk 0:02:55.2]} 5. Nc3 {[%clk 0:03:03.1]}
5... a6 {[%clk 0:02:54.6]} 6. f4 {[%clk 0:03:03.6]} 6... e6 {[%clk 0:02:54.4]}
7. Nf3 {[%clk 0:03:04]} 7... Be7 {[%clk 0:02:54.3]} 8. Bd3 {[%clk 0:03:04.5]}
8... O-O {[%clk 0:02:54.2]} 9. O-O {[%clk 0:03:04.7]} 9... b5 {[%clk 0:02:54.2]}
10. a3 {[%clk 0:03:04.7]} 10... Qc7 {[%clk 0:02:54.1]} 11. Kh1 {[%clk 0:03:05]}
11... Nbd7 {[%clk 0:02:53.6]} 12. Qe1 {[%clk 0:03:05.3]} 12... Bb7 {[%clk
0:02:53.6]} 13. Bd2 {[%clk 0:03:05.8]} 13... Nc5 {[%clk 0:02:51.9]} 14. b4
{[%clk 0:03:04.9]} 14... Nxd3 {[%clk 0:02:48.5]} 15. cxd3 {[%clk 0:03:05.8]}
15... Rac8 {[%clk 0:02:46.8]} 16. Qg3 {[%clk 0:03:06.1]} 16... d5 {[%clk
0:02:38.6]} 17. e5 {[%clk 0:03:05.8]} 17... Nd7 {[%clk 0:02:35.9]} 18. Rae1
{[%clk 0:03:04.3]} 18... Nb6 {[%clk 0:02:35.2]} 19. f5 {[%clk 0:03:00.6]} 19...
exf5 {[%clk 0:02:25.2]} 20. Nd4 {[%clk 0:03:00.4]} 20... Rfe8 {[%clk 0:01:56.7]}
21. Nxf5 {[%clk 0:02:59.3]} 21... Bf8 {[%clk 0:01:56.1]} 22. Nh6+ {[%clk
0:02:57.5]} 22... Kh8 {[%clk 0:01:55.6]} 23. Nxf7+ {[%clk 0:02:57.6]} 23... Kg8
{[%clk 0:01:55.6]} 24. Nh6+ {[%clk 0:02:37.6]} 24... Kh8 {[%clk 0:01:54.7]} 25.
Nf5 {[%clk 0:02:34.2]} 25... Re6 {[%clk 0:01:48.1]} 26. Qh3 {[%clk 0:02:16.3]}
26... Qd7 {[%clk 0:01:37.8]} 27. Nd4 {[%clk 0:02:09.5]} 27... Rg6 {[%clk
0:01:32.5]} 28. e6 {[%clk 0:02:07.8]} 28... Qe8 {[%clk 0:01:29.7]} 29. e7 {[%clk
0:02:01.2]} 29... Bxe7 {[%clk 0:01:26.6]} 30. Nf5 {[%clk 0:01:53.9]} 30... Rc7
{[%clk 0:01:22.3]} 31. Bf4 {[%clk 0:01:39.1]} 31... Rd7 {[%clk 0:01:17.5]} 32.
Nd6 {[%clk 0:00:43.4]} 32... Rgxd6 {[%clk 0:01:12.5]} 33. Bxd6 {[%clk
0:00:44.3]} 33... Rxd6 {[%clk 0:01:12.9]} 34. Qe3 {[%clk 0:00:37.5]} 34... Nc8
{[%clk 0:01:10.6]} 35. d4 {[%clk 0:00:29.7]} 35... Qd8 {[%clk 0:01:01.6]} 36.
Ne2 {[%clk 0:00:16.5]} 36... Bc6 {[%clk 0:00:57]} 37. Nf4 {[%clk 0:00:11.3]}
37... Bg5 {[%clk 0:00:52.7]} 38. Qf3 {[%clk 0:00:09.6]} 38... Rf6 {[%clk
0:00:49.6]} 39. Qg4 {[%clk 0:00:07.8]} 39... Bxf4 {[%clk 0:00:46.9]} 40. Rxf4
{[%clk 0:00:08.7]} 40... Rxf4 {[%clk 0:00:45.8]} 41. Qxf4 {[%clk 0:00:09.6]}
41... Ne7 {[%clk 0:00:35.8]} 42. Qe5 {[%clk 0:00:08.2]} 42... Ng8 {[%clk
0:00:33.5]} 43. Qe6 {[%clk 0:00:08.4]} 43... Qd7 {[%clk 0:00:27.2]} 44. h3
{[%clk 0:00:08.8]} 44... h6 {[%clk 0:00:24.7]} 45. Qg6 {[%clk 0:00:08.8]} 45...
Qd8 {[%clk 0:00:19.5]} 46. Qxc6 {[%clk 0:00:08.3]} 46... Qh4 {[%clk 0:00:18.6]}
47. Qe8 {[%clk 0:00:06.3]} 47... Kh7 {[%clk 0:00:16.8]} 48. Qe5 {[%clk
0:00:02.2]} 48... Nf6 {[%clk 0:00:15.3]} 49. Qf5+ {[%clk 0:00:02.8]} 49... Kh8
{[%clk 0:00:15.2]} 50. Qf1 {[%clk 0:00:03.7]} 50... Qxd4 {[%clk 0:00:14.7]} 51.
Qg1 {[%clk 0:00:04.3]} 51... Qc4 {[%clk 0:00:14.8]} 52. Rc1 {[%clk 0:00:04.8]}
52... d4 {[%clk 0:00:15.7]} 53. Rxc4 {[%clk 0:00:04.5]} 53... bxc4 {[%clk
0:00:16.6]} 54. Qxd4 {[%clk 0:00:05.3]} 54... Kh7 {[%clk 0:00:16]} 55. Qxc4
{[%clk 0:00:05.9]} 55... Kg6 {[%clk 0:00:16.9]} 56. Qc2+ {[%clk 0:00:06.7]}
56... Kg5 {[%clk 0:00:16.9]} 57. a4 {[%clk 0:00:07.6]} 57... Kf4 {[%clk
0:00:15.7]} 58. b5 {[%clk 0:00:08.5]} 58... g5 {[%clk 0:00:16.3]} 59. bxa6
{[%clk 0:00:08.9]} 59... Ne4 {[%clk 0:00:17.1]} 60. a7 {[%clk 0:00:09.8]} 60...
Ng3+ {[%clk 0:00:17.7]} 61. Kh2 {[%clk 0:00:10.1]} 61... Nf1+ {[%clk 0:00:17.5]}
62. Kg1 {[%clk 0:00:10.8]} 62... Ne3 {[%clk 0:00:18.2]} 63. Qf2+ {[%clk
0:00:11.2]} 63... Ke4 {[%clk 0:00:18.2]} 64. Qxe3+ {[%clk 0:00:12.1]} 64... Kxe3
{[%clk 0:00:19.1]} 65. a8=Q {[%clk 0:00:13]} 65... Kf4 {[%clk 0:00:19.9]} 66.
Qf3+ {[%clk 0:00:13.6]} 66... Ke5 {[%clk 0:00:20.1]} 67. a5 {[%clk 0:00:14.5]}
67... h5 {[%clk 0:00:20]} 68. Qe3+ {[%clk 0:00:15.4]} 68... Kf5 {[%clk 0:00:20]}
69. a6 {[%clk 0:00:16.3]} 69... g4 {[%clk 0:00:20.9]} 70. a7 {[%clk 0:00:16.9]}
70... gxh3 {[%clk 0:00:21.1]} 71. gxh3 {[%clk 0:00:17.8]} 71... h4 {[%clk
0:00:21]} 72. a8=Q {[%clk 0:00:17.7]} 72... Kg6 {[%clk 0:00:21.9]} 73. Qa5
{[%clk 0:00:17.9]} 1-0

[Event "*** Titled Tuesday Blitz"]
[Site "Chess.com"]
[Date "2021.04.06"]
[Round "4"]
[White "tusplingher"]
[Black "frenchpin"]
[Result "1/2-1/2"]
[WhiteElo "2317"]
[BlackElo "2510"]
[TimeControl "180+1"]
[EndTime "10:41:21 PDT"]
[Termination "Game drawn by repetition"]

1. e4 {[%clk 0:03:00.9]} 1... e6 {[%clk 0:03:00.9]} 2. d4 {[%clk 0:03:00.2]}
2... d5 {[%clk 0:02:56.4]} 3. Bd3 {[%clk 0:03:00.3]} 3... dxe4 {[%clk
0:02:53.1]} 4. Bxe4 {[%clk 0:03:00.1]} 4... Nf6 {[%clk 0:02:53.1]} 5. Bf3 {[%clk
0:02:59.9]} 5... c5 {[%clk 0:02:53.4]} 6. Ne2 {[%clk 0:02:59.4]} 6... Nc6 {[%clk
0:02:51.3]} 7. Be3 {[%clk 0:02:58.8]} 7... cxd4 {[%clk 0:02:51.6]} 8. Nxd4
{[%clk 0:02:58.8]} 8... Ne5 {[%clk 0:02:52.1]} 9. Nc3 {[%clk 0:02:57.3]} 9...
Bb4 {[%clk 0:02:50]} 10. O-O {[%clk 0:02:53.3]} 10... O-O {[%clk 0:02:48.9]} 11.
Qe2 {[%clk 0:02:33.5]} 11... Nxf3+ {[%clk 0:02:21.2]} 12. Nxf3 {[%clk
0:02:26.7]} 12... Qe7 {[%clk 0:02:12.9]} 13. Rad1 {[%clk 0:02:17.9]} 13... Bd7
{[%clk 0:02:12.2]} 14. Ne5 {[%clk 0:02:15.6]} 14... Rfd8 {[%clk 0:02:07.8]} 15.
Nxd7 {[%clk 0:02:10.8]} 15... Rxd7 {[%clk 0:02:07.7]} 16. Rxd7 {[%clk
0:02:09.9]} 16... Qxd7 {[%clk 0:02:08.6]} 17. Rd1 {[%clk 0:02:08.6]} 17... Qc6
{[%clk 0:02:08.7]} 18. Bd4 {[%clk 0:02:02.7]} 18... Bxc3 {[%clk 0:01:53]} 19.
bxc3 {[%clk 0:01:57.7]} 19... Nd5 {[%clk 0:01:49.2]} 20. c4 {[%clk 0:01:51.5]}
20... Nf4 {[%clk 0:01:42.1]} 21. Qg4 {[%clk 0:01:50.8]} 21... Ng6 {[%clk
0:01:32.8]} 22. h4 {[%clk 0:01:46.7]} 22... e5 {[%clk 0:01:16.6]} 23. Be3 {[%clk
0:01:45.6]} 23... Qc8 {[%clk 0:01:04.1]} 24. Qxc8+ {[%clk 0:01:21.5]} 24... Rxc8
{[%clk 0:01:05]} 25. Rd7 {[%clk 0:01:20.6]} 25... Nxh4 {[%clk 0:00:55.4]} 26.
Rxb7 {[%clk 0:01:16.5]} 26... a6 {[%clk 0:00:54.4]} 27. Ra7 {[%clk 0:01:13.2]}
27... f6 {[%clk 0:00:50.4]} 28. c5 {[%clk 0:01:08.7]} 28... Nf5 {[%clk 0:00:48]}
29. Rxa6 {[%clk 0:01:07.1]} 29... Nxe3 {[%clk 0:00:48]} 30. fxe3 {[%clk
0:01:07]} 30... Rxc5 {[%clk 0:00:48.3]} 31. Kf2 {[%clk 0:00:52.6]} 31... Rxc2+
{[%clk 0:00:48.1]} 32. Kf3 {[%clk 0:00:53]} 32... Kf7 {[%clk 0:00:48.4]} 33. a4
{[%clk 0:00:52.4]} 33... Kg6 {[%clk 0:00:47.9]} 34. a5 {[%clk 0:00:51.2]} 34...
Ra2 {[%clk 0:00:44.8]} 35. Ra7 {[%clk 0:00:49.9]} 35... h5 {[%clk 0:00:44.5]}
36. g3 {[%clk 0:00:45]} 36... Ra3 {[%clk 0:00:42.9]} 37. a6 {[%clk 0:00:44.6]}
37... Kh6 {[%clk 0:00:37.4]} 38. Ke4 {[%clk 0:00:40.5]} 38... g6 {[%clk
0:00:33]} 39. Ra8 {[%clk 0:00:28.4]} 39... Kg5 {[%clk 0:00:32.8]} 40. a7 {[%clk
0:00:28.3]} 40... Ra5 {[%clk 0:00:27.4]} 41. Kf3 {[%clk 0:00:25.3]} 41... Ra4
{[%clk 0:00:25.7]} 42. Kf2 {[%clk 0:00:22.6]} 42... Kf5 {[%clk 0:00:24.5]} 43.
Kf3 {[%clk 0:00:21.2]} 43... Ra2 {[%clk 0:00:22.1]} 44. e4+ {[%clk 0:00:20.6]}
44... Kg5 {[%clk 0:00:21.8]} 45. Ke3 {[%clk 0:00:20.4]} 45... Ra3+ {[%clk
0:00:20.9]} 46. Kf2 {[%clk 0:00:20.4]} 46... Ra5 {[%clk 0:00:18.5]} 47. Kf3
{[%clk 0:00:19.7]} 47... Ra2 {[%clk 0:00:16.7]} 48. Ke3 {[%clk 0:00:18.6]} 48...
Ra1 {[%clk 0:00:12.2]} 49. Kf3 {[%clk 0:00:18.5]} 49... Ra5 {[%clk 0:00:08.7]}
50. Ke3 {[%clk 0:00:18.4]} 50... Ra6 {[%clk 0:00:08.9]} 51. Kf3 {[%clk
0:00:18.4]} 51... Ra3+ {[%clk 0:00:09.3]} 52. Kf2 {[%clk 0:00:18.5]} 52... Kg4
{[%clk 0:00:06.5]} 53. Rg8 {[%clk 0:00:17.9]} 53... Ra2+ {[%clk 0:00:06.1]} 54.
Ke3 {[%clk 0:00:17.5]} 54... Rxa7 {[%clk 0:00:05.5]} 55. Rxg6+ {[%clk
0:00:17.4]} 55... Kh3 {[%clk 0:00:05.8]} 56. Kf3 {[%clk 0:00:16.8]} 56... Ra3+
{[%clk 0:00:05.2]} 57. Kf2 {[%clk 0:00:17.1]} 57... Ra2+ {[%clk 0:00:05.1]} 58.
Kf3 {[%clk 0:00:17.1]} 58... Ra3+ {[%clk 0:00:05.3]} 59. Kf2 {[%clk 0:00:17.4]}
59... Ra6 {[%clk 0:00:05.1]} 60. Kf3 {[%clk 0:00:17.1]} 60... Rc6 {[%clk
0:00:04.7]} 61. Kf2 {[%clk 0:00:13.8]} 61... Rd6 {[%clk 0:00:04.3]} 62. Kf3
{[%clk 0:00:12.6]} 62... Rd3+ {[%clk 0:00:04.5]} 63. Kf2 {[%clk 0:00:12.4]}
63... Rd4 {[%clk 0:00:05]} 64. Kf3 {[%clk 0:00:10.1]} 64... Rb4 {[%clk
0:00:05.2]} 65. Rh6 {[%clk 0:00:10]} 65... Rb3+ {[%clk 0:00:05.2]} 66. Kf2
{[%clk 0:00:10.2]} 66... Kg4 {[%clk 0:00:05.7]} 67. Rg6+ {[%clk 0:00:09.9]}
67... Kh3 {[%clk 0:00:06.1]} 68. Rh6 {[%clk 0:00:10.2]} 68... Rb2+ {[%clk
0:00:05.7]} 69. Kf3 {[%clk 0:00:09.6]} 69... Rb3+ {[%clk 0:00:06.2]} 70. Kf2
{[%clk 0:00:09.7]} 1/2-1/2